Cogmind - Beta 16 @@@ ROGUE MODE // 2025.11.01 @ 21:59:57 Player: BOBIT Result: Destroyed by B-75 Beast with Heavy Machine Gun Performance ------------- Evolutions (5) 2500 Regions Visited (5) 1000 Robots Destroyed (0) 0 Value Destroyed (0) 0 Prototype IDs (6) 120 Alien Tech Used (0) 0 Bonus (876) 876 TOTAL SCORE: 4496 Bonus ------- Pacifist 491 Follower Combat Kills 85 Registered with UFD 300 Cogmind --------- Core Integrity 0/1000 Matter 17/300 Energy 100/100 System Corruption 11% Temperature Cool (12) Movement Core (50) Location -5/Factory Parts ------- > --- POWER (1) -------- (None) > --- PROPULSION (2) --- (None) > --- UTILITY (12) ----- (None) > --- WEAPON (2) ------- (None) > --- INVENTORY (5) ---- Scrap Suit A0-MCA's Component Scanner DRS Beacon (Ready) Botcube Peak State ------------ > --- POWER ------------ Light Ion Engine > --- PROPULSION ------- Wheel Wheel > --- UTILITY ---------- Scrapoid Pod > --- WEAPON ----------- Improved Proton Missile Launcher Makeshift Spear > --- INVENTORY -------- Scrap Suit Active Sensor Suite [Rating: 27] Favorites ----------- Power Light Ion Engine Engine Light Ion Engine Propulsion Wheel Wheel Wheel Utility Small Storage Unit Device Sensor Array Storage Small Storage Unit Weapon Improved Proton Missile Launcher Energy Gun EM Pulse Gun Ballistic Gun Assault Rifle Launcher Improved Proton Missile Launcher Piercing Weapon Makeshift Spear Build | -11 -10 -10 -10 -7 -5 ------- Run | Yrd Mat Min Sub Scr Fac Slots Evolved 10 | . . . . . 10 Power . | . . . . . . Propulsion . | . . . . . . Utility 10 | . . . . . 10 Weapon . | . . . . . . Parts Attached 11 | 6 . 1 . 4 . Power 2 | 1 . . . 1 . Engine 2 | 1 . . . 1 . Core . | . . . . . . Reactor . | . . . . . . Propulsion 2 | 2 . . . . . Treads . | . . . . . . Leg . | . . . . . . Wheel 2 | 2 . . . . . Hover . | . . . . . . Flight . | . . . . . . Utility 3 | 1 . 1 . 1 . Device 2 | . . 1 . 1 . Storage 1 | 1 . . . . . Processor . | . . . . . . Hackware . | . . . . . . Protection . | . . . . . . Artifact . | . . . . . . Weapon 4 | 2 . . . 2 . Energy Gun 1 | 1 . . . . . Energy Cannon . | . . . . . . Ballistic Gun 1 | 1 . . . . . Ballistic Cannon . | . . . . . . Launcher 1 | . . . . 1 . Special Weapon . | . . . . . . Impact Weapon . | . . . . . . Slashing Weapon . | . . . . . . Piercing Weapon 1 | . . . . 1 . Special Melee Weapon . | . . . . . . Unidentified Prototypes . | . . . . . . Parts Lost 5 | . . . . . 5 Power 1 | . . . . . 1 Propulsion 2 | . . . . . 2 Utility . | . . . . . . Weapon 2 | . . . . . 2 Highest Loss Streak 5 | . . . . . 5 To Critical Strikes . | . . . . . . Average Backups 5 | 3 6 7 8 5 2 Power . | . 1 1 1 . . Propulsion 2 | 1 4 5 5 2 . Utility 1 | . . . 1 2 2 Weapon . | . 1 1 1 1 . Tool/Special . | . . . . . . Unused Backups 17 | . . . . 15 2 Power . | . . . . . . Propulsion 5 | . . . . 5 . Utility 9 | . . . . 7 2 Weapon 3 | . . . . 3 . Tool/Special . | . . . . . . Average Slot Usage (%) 86 | . 85 93 100 93 24 Engine 12 | . 14 14 14 14 3 Wheel 25 | . 28 28 28 28 7 Device 11 | . . 8 14 13 4 Storage 9 | . 14 14 14 9 . Energy Gun 4 | . 14 14 14 1 . Ballistic Gun 4 | . 14 14 14 1 . Launcher 8 | . . . . 12 3 Piercing Weapon 7 | . . . . 11 4 Peak Build Rating 27 | 6 6 7 7 27 27 Average Rating 15 | 4 6 6 7 17 21 On Entrance 8 | . 6 6 7 7 27 Avg Prop Armor Cover (%) . | . . . . . . Naked Turns 37 | . . . . . 37 Heaviest Build 21 | 12 12 13 13 21 21 Greatest Support 20 | 20 20 20 20 20 20 Greatest Overweight (x) 3 | . . . . 1 3 Average Overweight (x) . | . . . . . . Largest Inventory Capacity 8 | 8 8 8 8 8 5 Average Capacity 6 | 6 8 8 8 6 5 Most Carried 8 | 6 7 8 8 8 5 Average Carried 6 | 3 6 7 8 6 5 Final Capacity 8 | 8 8 8 8 5 5 Final Carried 8 | 6 7 8 8 5 5 Class Distribution -------------------- 100% | Mutant Dominant Class ---------------- Mutant | -10/Materials Mutant | -10/Mines Mutant | -10/Subcaves Mutant | -7/Scraptown Mutant | -5/Factory Resources | -11 -10 -10 -10 -7 -5 ----------- Run | Yrd Mat Min Sub Scr Fac Matter Collected 300 | 223 . 40 . 37 . Remotely . | . . . . . . Salvage Created . | . . . . . . Parts . | . . . . . . Haulers Intercepted . | . . . . . . Recyclers Shooed . | . . . . . . Parts Field Recycled . | . . . . . . Retrieved Matter . | . . . . . . Parts Self-Destructed . | . . . . . . Prevented . | . . . . . . Parts Restored . | . . . . . . Kills | -11 -10 -10 -10 -7 -5 ------- Run | Yrd Mat Min Sub Scr Fac Combat Hostiles Destroyed . | . . . . . . Classes Destroyed . | . . . . . . Best Kill Streak . | . . . . . . Combat Bots Only . | . . . . . . Max Kills in Single Turn . | . . . . . . Gunslinging . | . . . . . . Exploded . | . . . . . . Melee . | . . . . . . Uniques/NPCs Destroyed . | . . . . . . Combat | -11 -10 -10 -10 -7 -5 -------- Run | Yrd Mat Min Sub Scr Fac Hostile Shots Fired 81 | . 7 . . . 74 Missed 20 | . 1 . . . 19 Hits 61 | . 6 . . . 55 Projectile 61 | . 6 . . . 55 AOE 5 | . . . . . 5 Critical Strikes 2 | . . . . . 2 Damage Taken 1589 | . 67 . . . 1522 Core 1031 | . 22 . . . 1009 Absorbed by Shields . | . . . . . . Core Remaining (%) 95 | 100 . . . 91 . Volleys Fired . | . . . . . . Largest . | . . . . . . Hottest . | . . . . . . Shots Fired . | . . . . . . Gun . | . . . . . . Cannon . | . . . . . . Launcher . | . . . . . . Special . | . . . . . . Kinetic . | . . . . . . Thermal . | . . . . . . Explosive . | . . . . . . Electromagnetic . | . . . . . . Robot Hit Streak . | . . . . . . Robot Miss Streak . | . . . . . . Penetration Max . | . . . . . . Secondary Targets . | . . . . . . Shots Hit Robots 5 | . . . . . 5 Core Hits 1 | . . . . . 1 Critical Kills . | . . . . . . Critical Parts Destroyed . | . . . . . . Critical Strikes 1 | . . . . . 1 Impale 1 | . . . . . 1 Melee Attacks 16 | . . . . . 16 Impact . | . . . . . . Slashing . | . . . . . . Piercing 16 | . . . . . 16 Sneak Attacks . | . . . . . . Combat Hostiles . | . . . . . . Follow-up Attacks . | . . . . . . Damage Inflicted 139 | . . . . . 139 Guns . | . . . . . . Cannons . | . . . . . . Explosions . | . . . . . . Melee 139 | . . . . . 139 Ramming . | . . . . . . Kinetic . | . . . . . . Thermal . | . . . . . . Explosive . | . . . . . . Electromagnetic . | . . . . . . Impact . | . . . . . . Slashing . | . . . . . . Piercing 139 | . . . . . 139 Highest Corruption 11 | . . . . . 11 Average Corruption 6 | . . . . . 6 Corruption Purged . | . . . . . . Corruption Blocked . | . . . . . . Effects 3 | . . . . . 3 Message Errors 1 | . . . . . 1 Matter Fused 1 | . . . . . 1 Heat Flow Errors 1 | . . . . . 1 Overload Shots . | . . . . . . Overflow Damage 20 | . . . . . 20 Projectiles . | . . . . . . Explosions . | . . . . . . Melee 20 | . . . . . 20 Knockbacks . | . . . . . . Impact . | . . . . . . Kinetic . | . . . . . . Secondary . | . . . . . . Self-Inflicted Damage . | . . . . . . Shots . | . . . . . . Rammed . | . . . . . . Targets Rammed . | . . . . . . Kicked . | . . . . . . Crushed . | . . . . . . Highest Temperature 211 | . . . . . 211 Average Temperature 108 | . . . . . 108 Received Heat Transfer 213 | . 36 . . . 177 Siege Activations . | . . . . . . Martial Activations . | . . . . . . Shielding Activations . | . . . . . . Robots Disrupted . | . . . . . . Combat Hostiles . | . . . . . . Robots Corrupted . | . . . . . . Combat Hostiles . | . . . . . . Parts Fried . | . . . . . . Impact Corruptions . | . . . . . . Robots Melted . | . . . . . . Combat Hostiles . | . . . . . . Parts Melted . | . . . . . . Heat Transferred . | . . . . . . Parts Sabotaged . | . . . . . . Parts Stolen . | . . . . . . Parts Stripped . | . . . . . . Power Chain Reactions . | . . . . . . Alert | -11 -10 -10 -10 -7 -5 ------- Run | Yrd Mat Min Sub Scr Fac Maximum Alert Level . | . . . . . . Low Security (%) 100 | 100 100 100 . . 100 Level 1 . | . . . . . . Level 2 . | . . . . . . Level 3 . | . . . . . . Level 4 . | . . . . . . Level 5 . | . . . . . . High Security . | . . . . . . Max Security . | . . . . . . Peak Influence 84 | . 8 84 . . 15 Initial . | . . . . . . Average 5 | . 1 12 . . . Influence Increases 124 | . 15 94 . . 15 Destroy 0b10 Robot/C 80 | . . 80 . . . Destroy Leader 10 | . . 10 . . . Allied During Kill 4 | . . 4 . . . Successful Hack 15 | . 15 . . . . Lose Combat Pursuer 15 | . . . . . 15 Influence Decreases 109 | . 15 20 74 . . Entered New Map 39 | . . . 39 . . Time Decay 70 | . 15 20 35 . . Squads Dispatched 3 | . 2 1 . . . Investigation 2 | . 2 . . . . Extermination . | . . . . . . Reinforcement . | . . . . . . Assault 1 | . . 1 . . . Garrison . | . . . . . . Intercept . | . . . . . . Searches Triggered . | . . . . . . Construction Impeded . | . . . . . . Haulers Reinforced . | . . . . . . Active Scanning Responses . | . . . . . . Cargo Convoy Interrupts . | . . . . . . Stealth | -11 -10 -10 -10 -7 -5 --------- Run | Yrd Mat Min Sub Scr Fac Distress Signals . | . . . . . . Communications Jammed . | . . . . . . Distress Signals . | . . . . . . Times Spotted 5 | . 1 . . . 4 Peak Tracking Total 4 | . 1 . . . 4 Tactical Retreats 1 | . . . . . 1 Traps | -11 -10 -10 -10 -7 -5 ------- Run | Yrd Mat Min Sub Scr Fac Traps Triggered 1 | . . . . . 1 Indirectly . | . . . . . . Trap Hack Attempts . | . . . . . . Triggered . | . . . . . . Disarmed . | . . . . . . Reprogrammed . | . . . . . . Reused . | . . . . . . Traps Extracted . | . . . . . . Installed . | . . . . . . Triggered . | . . . . . . Machines | -11 -10 -10 -10 -7 -5 ---------- Run | Yrd Mat Min Sub Scr Fac Machines Disabled . | . . . . . . Max in Single Turn . | . . . . . . Machines Repaired . | . . . . . . Machines Dismantled . | . . . . . . Machines Sabotaged . | . . . . . . Overloaded Fab Kills . | . . . . . . Hacking | -11 -10 -10 -10 -7 -5 --------- Run | Yrd Mat Min Sub Scr Fac Machines Accessed 9 | . 5 . . 2 2 Terminals 6 | . 5 . . . 1 Fabricators 1 | . . . . . 1 Repair Stations . | . . . . . . Recycling Units . | . . . . . . Scanalyzers . | . . . . . . Garrison Access . | . . . . . . Total Hacks 35 | . 15 . . 17 3 Successful 27 | . 9 . . 17 1 Failed 8 | . 6 . . . 2 Catastrophic 1 | . . . . . 1 Database Lockouts . | . . . . . . Manual . | . . . . . . Terminals 17 | . 15 . . . 2 Fabricators 1 | . . . . . 1 Repair Stations . | . . . . . . Recycling Units . | . . . . . . Scanalyzers . | . . . . . . Garrison Access . | . . . . . . Terminal Hacks 26 | . 9 . . 17 . Record 23 | . 6 . . 17 . Locate Traps 1 | . 1 . . . . Dispatch Records 1 | . 1 . . . . Zone Layout 1 | . 1 . . . . Fabricator Hacks 1 | . . . . . 1 Network Status 1 | . . . . . 1 Repair Station Hacks . | . . . . . . Recycling Unit Hacks . | . . . . . . Scanalyzer . | . . . . . . Garrison Access Hacks . | . . . . . . Unauthorized Hacks . | . . . . . . Terminals . | . . . . . . Fabricators . | . . . . . . Repair Stations . | . . . . . . Recycling Units . | . . . . . . Scanalyzers . | . . . . . . Garrison Access . | . . . . . . Data Cores Recovered . | . . . . . . Used . | . . . . . . Hacking Detections 6 | . 4 . . . 2 Full Trace Events 3 | . 3 . . . . Feedback Events . | . . . . . . Feedback Blocked . | . . . . . . Robot Schematics Acquired . | . . . . . . Robots Built . | . . . . . . Authchips . | . . . . . . Time . | . . . . . . Total Robot Build Rating . | . . . . . . Part Schematics Acquired . | . . . . . . Parts Built . | . . . . . . Authchips . | . . . . . . Time . | . . . . . . Total Part Build Rating . | . . . . . . Part Studies Acquired . | . . . . . . Parts Repaired . | . . . . . . Time . | . . . . . . Parts Recycled . | . . . . . . Recycled Matter . | . . . . . . Retrieved Matter . | . . . . . . Retrieved Components . | . . . . . . Parts Scanalyzed . | . . . . . . Part Schematics Acquired . | . . . . . . Parts Damaged . | . . . . . . Bothacking | -11 -10 -10 -10 -7 -5 ------------ Run | Yrd Mat Min Sub Scr Fac Used RIF Installer . | . . . . . . Robots Hacked . | . . . . . . Non-combat . | . . . . . . Combat . | . . . . . . Robot Hacks Applied . | . . . . . . Relay Couplers Released . | . . . . . . Fabnet Peak Effective % . | . . . . . . Robots Rewired . | . . . . . . Allies Hacked . | . . . . . . Hacks Repelled . | . . . . . . Allies | -11 -10 -10 -10 -7 -5 -------- Run | Yrd Mat Min Sub Scr Fac Total Allies 1 | . . 1 . . . Largest Group 1 | . . 1 1 1 . Highest-Rated Group 31 | . . 31 31 31 . Highest-Rated Ally 31 | . . 31 31 31 . Total Orders . | . . . . . . Ally Attacks 5 | . . 5 . . . Total Damage 108 | . . 108 . . . Kills 4 | . . 4 . . . Allies Corrupted . | . . . . . . Allies Melted . | . . . . . . Intel | -11 -10 -10 -10 -7 -5 ------- Run | Yrd Mat Min Sub Scr Fac Active Infowar (turns) 1152 | . . 129 165 858 . Sensors 1152 | . . 129 165 858 . Robot Analysis Total . | . . . . . . Derelict Logs Recovered . | . . . . . . Drone Launches . | . . . . . . Drone Recoveries . | . . . . . . Exploration | -11 -10 -10 -10 -7 -5 ------------- Run | Yrd Mat Min Sub Scr Fac Turns Passed 2039 | 59 83 210 165 1315 207 Spaces Moved 2275 | 57 99 227 201 1489 202 Core 83 | 6 . . . . 77 Treads . | . . . . . . Legs . | . . . . . . Wheels 2192 | 51 99 227 201 1489 125 Hover . | . . . . . . Flight . | . . . . . . Fastest Speed 50 | 50 80 80 80 80 50 Average Speed 83 | 76 80 80 80 84 81 Slowest Speed 200 | 80 80 80 80 95 200 Overloaded Moves . | . . . . . . Propulsion Burnouts . | . . . . . . Robots Hopped . | . . . . . . Potential Cave-ins . | . . . . . . Cave-ins Triggered . | . . . . . . Exploration Rate (%) 29 | 3 22 33 22 87 8 Regions Visited 5 Branch Regions 3 Pre-discovered Areas . | . . . . . . Known Exits Taken . | . . . . . . Unknown Exits Taken 5 | 1 1 1 1 1 . Scrap Searched 4 | . . 1 . 3 . Spaces Dug . | . . . . . . Terrain Destroyed . | . . . . . . Melee . | . . . . . . Projectile . | . . . . . . AOE . | . . . . . . Terrain Rammed . | . . . . . . Walls Destroyed . | . . . . . . Machines Disabled . | . . . . . . Actions | -11 -10 -10 -10 -7 -5 --------- Run | Yrd Mat Min Sub Scr Fac Total 2407 | 69 102 254 204 1551 227 Wait 61 | . 3 26 4 28 . Move 2270 | 56 98 226 200 1488 202 Hop . | . . . . . . Pick Up 22 | 7 1 1 . 13 . Fast Attach 8 | 5 . 1 . 2 . Attach 2 | 1 . . . 1 . Detach 1 | . . . . . 1 Swap 1 | . . . . 1 . Drop 18 | . . . . 18 . Fire . | . . . . . . Melee 16 | . . . . . 16 Ram . | . . . . . . Kick . | . . . . . . Crush . | . . . . . . Escape Stasis 8 | . . . . . 8 Rewire . | . . . . . . Trap . | . . . . . . Miscellaneous . | . . . . . . Route ------- -11/Scrapyard -10/Materials -10/Mines -10/Subcaves (discovered 2 exits: [*Mat] / *Scr) -7/Scraptown (discovered 2 exits: *Fac x2) -5/Factory History --------- Turn | Location | Event 10 | -11/Scrapyard | Discovered new exit (range 15) 60 | -11/Scrapyard | Entered Materials 117 | -10/Materials | Discovered new exit (range 16) 143 | -10/Materials | Entered Mines 235 | -10/Mines | Met a Derelict testing a Signal Generator 301 | -10/Mines | Build established: Mutant 321 | -10/Mines | Discovered new exit (range 6) 353 | -10/Mines | Entered Subcaves 353 | -10/Subcaves | Accompanied by 1 ally 354 | -10/Subcaves | Approached by a straggling Scientist 359 | -10/Subcaves | Discovered new exit (range 10) 467 | -10/Subcaves | Scientist uncovered a shortcut to Scraptown 518 | -10/Subcaves | Entered Scraptown 518 | -7/Scraptown | Accompanied by 1 ally 735 | -7/Scraptown | Discovered new exit (range 7) 807 | -7/Scraptown | Visited Red Mages 824 | -7/Scraptown | Visited Comm Corps 868 | -7/Scraptown | Visited Spacefarers 887 | -7/Scraptown | Visited Shadow of the Wyrm 924 | -7/Scraptown | Visited UFD Registry 1193 | -7/Scraptown | Visited Assassins FH 1227 | -7/Scraptown | Visited Cave Peace 1255 | -7/Scraptown | Registered with UFD as "Pulsenade" 1301 | -7/Scraptown | Visited Scrapoid Pod Storage 1307 | -7/Scraptown | Found Scrapoid Pod 1369 | -7/Scraptown | Visited Scrap Suit Storage 1402 | -7/Scraptown | Found Scrap Suit 1583 | -7/Scraptown | Visited Infowarlord's Domain 1591 | -7/Scraptown | Found Active Sensor Suite 1611 | -7/Scraptown | Visited A0-MCA Data Center 1617 | -7/Scraptown | Given a C+ rating by A0-MCA 1659 | -7/Scraptown | Visited Derelict Rescue Squad 1665 | -7/Scraptown | Found DRS Beacon 1705 | -7/Scraptown | Found A0-MCA's Component Scanner 1718 | -7/Scraptown | Visited Botcube Research 1722 | -7/Scraptown | Found Botcube 1771 | -7/Scraptown | Discovered new exit (range 3) 1833 | -7/Scraptown | Entered Factory 1833 | -5/Factory | Evolved 10 slots: Utility x10 2002 | -5/Factory | System corruption reached 10% 2031 | -5/Factory | Spotted B-75 Beast 2032 | -5/Factory | Lost 5 parts (1p2n2w) 2038 | -5/Factory | Core integrity fell below 50% 2038 | -5/Factory | Core integrity fell below 20% 2040 | -5/Factory | Destroyed by B-75 Beast with Heavy Machine Gun Last Messages --------------- 01923_ Field strength at 20. 01924_ Field strength at 10. 01925_ Stasis field depleted. 01940_ K-01 Serf collects debris. 01951_ ALERT: All DSF locations entering lockdown mode. 01954_ K-01 Serf collects debris. 01960_ P-70 Sage suffers critical hit (Impale). 01962_ Wheel destroyed. 01965_ Imp. Proton Missile Launcher destroyed. 01972_ Wheel destroyed. 01978_ Lgt. Ion Engine destroyed. 01979_ Destroyed Tesla Rifle. 01989_ Critical hit (Burn: +37). 01993_ System corrupted: Heat flow error (+240). 01998_ K-01 Serf collects debris. 02001_ Mak. Spear destroyed. 02003_ Discarded Scrapoid Pod. 02013_ D,H#A3OP3S0I 9JR6M/ATB 02031_ System corrupted: Matter fused (-8). 02037_ Nuclear Reactor explodes. Map ----- +----------------------------------------------------+ | | | | | | | | | | | | | | | | | | | ?????????????????????????????????????????????????? | | ?????????????????????????????????????????????????? | | ?????????????????????????????????????????????????? | | ???????????????????#####?????????????????????????? | | ???#########???????+ ??????????????????????????? | | ???# #???????# ??????????????????????????? | | #+## #???????# ??????????????????????????? | | #???????# #??????????????????????????? | | #???????# #??????????????????????????? | | #???????# #??????????????????????????? | | #????#### #####?????????? ??????????? | | #?#### ##BB#???????? ??????????? | | ### BB####### ""??????????? | | ""??????????? | | ""??????????? | | !! ????????????? | | !! """ """ @ #???????????????????? | | """ """ % #???????????????????? | | """ """ #??????????????????? | | #??????????????????? | | """ """ ##??????????????????? | | " " """ """ #??????????????????? | | "Y" """ """ ##??????????????????? | | """ #???????????????????? | | ??????????????????? | | # ""?????????????????? | | ############ ##### ""?????????????????? | | #??????????# #???? ""?????????????????? | | #??????????# #????? ??????????????????? | | #??????????# #????? ??????????????????? | | #??????????# #????????????????????????? | | ?#??????????? ?????????????????????????? | | ???????????????????????????????????????????? | | ?????????????????????????????????????????????? | | ???????????????????????????????????????????????? | | ?????????????????????????????????????????????????? | | ?????????????????????????????????????????????????? | | ?????????????????????????????????????????????????? | | ?????????????????????????????????????????????????? | | ?????????????????????????????????????????????????? | | ?????????????????????????????????????????????????? | +----------------------------------------------------+ Best States ------------- Heat Dissipation 40 Energy Generation 5 Energy Capacity 125 Matter Stores 300 Matter Capacity 300 Sight Range 16 Robot Scan Range 14 Terrain Scan Density 10 Evasion (%) 50 Item Schematics ----------------- None Robot Schematics ------------------ None Fabricated ------------ Nothing Repaired ---------- Nothing Studied --------- None Alien Tech Used ----------------- None Achievements -------------- Civilization 2243 Nice Directions, Buddy Challenges ------------ None Game ------ Seed NetworkSurgePit Manual? 0 Play Time 00:37:02 Cumulative 50.4 hours Start 2025.11.01 @ 21:18:29 End 2025.11.01 @ 21:59:57 Sessions 1 Manual Loads 0 Difficulty Rogue Special Mode None Game No. 106 Rogue 106 Adventurer 0 Explorer 0 Win Type - Total 0 Types 0/0/0/0/0/0/0/0/0/0 Lore% 18 Gallery% 38 Achievement% 25 Wizard Run 0 Options --------- Layout 0 ASCII 0 Keyboard 0 Movement Numpad Keybinds 0 Fullscreen 1 Font 20/SmallcapsGlow Map View 66x50 Zoom Use 0% Tactical HUD 1 Map Filters NONE Filters NONE Steam 1 RUN: a3943d57-5e1b-4de7-b194-4c90d611fd9f